bitfinex-derivatives/quotes_ETHF0:USTF0_20251229
["timestamp","ask_amount","ask_price","bid_price","bid_amount"]
[1767010658340,0.17448807,2917.8,2916.2,6.25442531]
[1767010658732,0.17448807,2917.8,2916.2,1.724]
[1767010659138,0.00514041,2917.3,2916.7,0.00514041]
[1767010659341,0.00514041,2917.3,2916.0,4.778]
[1767010660448,0.00514041,2917.3,2916.4,0.00514041]
[1767010661744,0.17673041,2917.3,2916.4,4.041e-05]
[1767010661937,0.17161,2917.0,2915.0,0.105]
[1767010662340,0.17161,2917.0,2915.1,4.51148417]
[1767010663039,0.17161,2916.9,2915.8,4.041e-05]
[1767010663946,0.17162,2916.7,2915.8,4.041e-05]
[1767010664140,0.00514041,2917.3,2915.1,0.00389413]
[1767010664346,0.17166,2916.1,2915.1,0.00389413]
[1767010664535,0.17167,2915.9,2914.3,4.778]
[1767010665146,0.00514041,2915.4,2914.8,0.00514041]
[1767010665536,0.00514041,2915.4,2913.9,4.778]
[1767010665537,0.0079304,2915.4,2913.9,4.778]
[1767010666036,0.17171,2915.3,2912.6,2.18542611]
[1767010666349,0.17172,2915.1,2913.3,2.078]
[1767010666544,0.17172,2915.1,2914.4,0.00342699]
[1767010666849,0.0079304,2915.4,2912.0,24.011]
[1767010667045,0.17175,2914.6,2912.1,4.778]
[1767010667250,0.17176,2914.4,2912.7,4.52405114]
[1767010667451,0.17177,2914.3,2912.1,9.30205114]
[1767010667651,0.00514041,2913.5,2912.1,4.778]
[1767010667843,0.00514041,2913.5,2912.2,4.38965544]
[1767010668043,0.00514041,2913.5,2912.3,4.78]
[1767010668245,0.00278999,2915.4,2912.3,4.78]
[1767010668453,0.17174,2914.7,2912.4,4.38965544]
[1767010668656,0.17174,2914.7,2912.4,4.56152544]
[1767010669047,0.17171,2915.2,2912.7,0.17186]
[1767010669244,0.00278999,2915.4,2913.3,0.00514968]
[1767010669449,0.17173,2914.9,2913.3,0.00514968]
[1767010669749,0.17174,2914.8,2913.3,0.00514968]
[1767010670147,0.00514968,2914.3,2913.3,0.00514968]
[1767010670349,4.968e-05,2914.3,2913.4,4.44546268]
[1767010670745,0.00278999,2915.4,2913.4,4.44546268]
[1767010671952,0.17166,2916.1,2913.8,2.01356611]
[1767010672154,0.3427,2917.2,2913.5,3.6195052]
[1767010672346,0.17167,2916.0,2913.9,4.46469489]
[1767010672551,3.425,2917.1,2913.6,9.23826641]
[1767010672552,0.17167,2915.9,2913.6,9.23826641]
[1767010672853,0.17167,2915.9,2914.5,0.00514968]
[1767010673050,0.17168,2915.8,2914.5,0.00839673]
[1767010673256,0.17168,2915.7,2914.5,0.00839673]
[1767010673754,0.00514968,2915.4,2914.5,0.00839673]
[1767010673944,0.00434647,2915.9,2914.5,0.00839673]
[1767010674254,0.00434647,2915.9,2914.6,4.784]
[1767010674458,0.00434647,2915.9,2914.7,4.784]
[1767010674644,0.17168,2915.8,2914.7,4.784]
[1767010674846,0.00341153,2915.5,2914.7,4.784]
[1767010675046,1.153e-05,2915.5,2914.7,4.784]
[1767010675255,0.00434647,2915.9,2914.7,4.784]
[1767010675757,0.00434647,2915.9,2914.5,0.00839673]
[1767010676160,0.00434647,2915.9,2914.6,1.352]
[1767010676554,0.00434647,2915.9,2914.5,0.00839673]
[1767010676754,0.17168,2915.8,2914.5,0.00839673]
[1767010677352,0.00434647,2915.9,2914.5,0.00839673]
[1767010677560,0.00434647,2915.9,2914.6,4.783]
[1767010678860,0.00434647,2915.9,2914.5,0.00839673]
[1767010681056,0.00434647,2915.9,2914.6,4.64621603]
[1767010681249,0.00434647,2915.9,2914.6,4.47446603]
[1767010681451,0.00434647,2915.9,2914.5,0.00839673]
[1767010681653,0.00434647,2915.9,2913.4,4.783]
[1767010681849,0.17173,2915.0,2913.4,4.783]
[1767010682349,0.17177,2914.3,2913.2,4.782]
[1767010682563,0.00514968,2914.0,2913.5,0.00514968]
[1767010682950,0.00514968,2914.0,2913.5,4.968e-05]
[1767010683859,0.1718,2913.7,2913.5,4.968e-05]
[1767010684055,0.00427089,2913.7,2913.2,9.3e-06]
[1767010684262,0.00427089,2913.7,2911.4,1.95059968]
[1767010684454,0.00427089,2913.7,2911.1,1.77866968]
[1767010684662,0.17186,2912.8,2911.2,4.783]
[1767010684863,0.17186,2912.8,2911.2,9.2147319]
[1767010685060,0.00427089,2913.7,2911.7,0.00514968]
[1767010685061,0.00514968,2912.3,2911.7,0.00514968]
[1767010685259,0.3433,2912.7,2911.7,0.00514968]
[1767010685260,0.3433,2912.7,2911.7,0.00889646]
[1767010685663,0.17184,2913.1,2911.7,0.00889646]
[1767010685859,0.17184,2913.0,2911.8,4.787]
[1767010686164,0.17184,2913.0,2911.9,4.787]
[1767010686362,0.00514968,2912.7,2911.7,0.00889646]
[1767010686770,0.00514968,2912.7,2911.8,2.033]
[1767010687062,0.17187,2912.6,2911.7,0.00889646]
[1767010687452,0.00514968,2912.7,2911.7,0.00889646]
[1767010687659,0.17188,2912.4,2911.7,0.00889646]
[1767010688368,0.17188,2912.3,2911.7,0.00889646]
[1767010688764,0.00514968,2912.7,2911.7,0.00889646]
[1767010689261,0.17181,2913.6,2912.1,1.77866968]
[1767010689569,0.00427089,2913.7,2912.2,4.45189196]
[1767010689869,0.17174,2914.8,2912.6,1.77866968]
[1767010690075,0.17174,2914.7,2912.7,4.788]
[1767010690266,0.17174,2914.7,2913.4,0.00514968]
[1767010690764,0.00435385,2914.7,2913.4,0.00514968]
[1767010690969,0.00435385,2914.7,2913.5,4.40544776]
[1767010691877,0.00435385,2914.7,2913.4,0.00514968]
[1767010692672,0.17177,2914.2,2912.5,1.056]
[1767010693669,0.00514968,2913.6,2913.1,0.00514968]
[1767010694274,0.00514968,2913.6,2912.3,1.266]
[1767010694764,0.00514968,2913.6,2912.2,4.42411084]
[1767010694966,0.00514968,2913.6,2911.7,0.00374678]
[1767010695165,0.00514968,2913.6,2912.4,0.00514968]
[1767010695372,0.17609385,2914.7,2912.7,1.77866968]
[1767010695567,0.00435385,2914.7,2913.2,1.77866968]
[1767010695768,0.17175,2914.6,2912.8,8.13591694]
[1767010695971,0.00435385,2914.7,2912.8,6.56566968]
[1767010696168,0.00435385,2914.7,2913.3,1.77866968]
[1767010696362,0.1717,2915.4,2913.3,1.77866968]
[1767010696564,3.61166,2916.1,2913.8,1.77866968]
[1767010696765,1.05743632,2916.0,2913.8,1.77866968]
[1767010696966,0.88576632,2915.9,2913.9,4.50193358]
[1767010697164,1.77866968,2916.3,2913.3,1.77866968]
[1767010697368,0.88550974,2916.2,2913.9,1.77866968]
[1767010697676,0.1717,2915.5,2914.8,0.00514968]
[1767010698070,0.17590652,2916.3,2914.8,0.00514968]
[1767010698373,0.88574947,2916.2,2914.8,0.00514968]
[1767010698578,0.88574947,2916.1,2914.8,0.00514968]
[1767010698876,0.17169,2915.6,2913.7,2.059]
[1767010699376,0.0051,2915.7,2913.9,1.77866968]
[1767010699773,0.0051,2915.7,2914.5,0.00514968]
[1767010700172,0.17169,2915.6,2914.5,0.00514968]
[1767010701276,0.0051,2915.7,2914.5,0.00514968]
[1767010701473,0.17590652,2916.3,2914.7,1.77866968]
[1767010701775,0.00425652,2916.3,2914.7,1.77866968]
[1767010702177,0.00425652,2916.3,2914.8,4.39967087]
[1767010703069,0.17157,2917.6,2915.2,1.77866968]
[1767010703274,0.17157,2917.6,2916.1,0.00514968]
[1767010703479,0.17158,2917.5,2916.1,0.00514968]
[1767010703980,0.17159,2917.3,2916.1,0.0081145]
[1767010704181,0.17161,2917.0,2916.1,1.45e-05]
[1767010705287,0.00514968,2916.8,2916.3,0.00514968]
[1767010705485,0.17468744,2917.5,2916.3,0.00514968]
[1767010705691,0.17159,2917.4,2916.3,0.00514968]
[1767010705989,0.00310744,2917.5,2915.1,2.38772]
[1767010706491,0.00310744,2917.5,2915.4,1.77866968]
[1767010706791,0.00310744,2917.5,2915.9,1.77866968]
[1767010707090,0.00310744,2917.5,2916.4,0.00514968]
[1767010708092,0.17154,2918.2,2916.5,4.55043095]
[1767010708588,0.87386709,2919.2,2916.5,4.55043095]
[1767010708894,0.17152,2918.5,2916.5,4.55043095]
[1767010709190,0.00415248,2918.5,2916.9,1.77866968]
[1767010709390,1.77866968,2920.2,2916.5,4.72206095]
[1767010709391,0.17146,2919.6,2917.4,1.77866968]
[1767010709590,0.17146,2919.6,2917.0,0.1716]
[1767010709591,0.17146,2919.6,2918.2,0.00514077]
[1767010710288,0.17146,2919.6,2918.2,0.00845809]
[1767010710489,0.17148,2919.3,2918.2,0.00845809]
[1767010710793,0.00365432,2919.6,2917.1,1.283]
[1767010711193,0.1715,2918.9,2917.2,4.53355287]
[1767010711396,0.17153,2918.4,2916.5,4.781]
[1767010711686,0.17153,2918.4,2917.2,0.00514077]
[1767010712584,0.1715,2918.8,2917.2,0.00514077]
[1767010713192,0.17146,2919.5,2917.2,0.00514077]
[1767010713384,0.17147,2919.4,2917.3,4.46534943]
[1767010713692,0.00365432,2919.6,2917.3,4.46534943]
[1767010713895,0.00365432,2919.6,2917.5,0.17157]
[1767010714392,0.00365432,2919.6,2917.6,4.50097601]
[1767010714695,0.00365432,2919.6,2917.2,0.00514077]
[1767010715195,0.00365432,2919.6,2917.3,6.54131769]
[1767010716498,0.17148,2919.1,2917.3,6.54131769]
[1767010716894,0.00365432,2919.6,2917.3,6.71290769]
[1767010717098,0.17510432,2919.6,2917.4,3.69905173]
[1767010717391,0.17148,2919.1,2917.3,2.056]
[1767010717592,0.17148,2919.1,2917.2,0.00514077]
[1767010717790,0.17148,2919.1,2917.4,4.49530401]
[1767010717986,0.17148,2919.1,2917.3,9.27330401]
[1767010718191,0.00365432,2919.6,2917.3,4.94959]
[1767010718395,0.00365432,2919.6,2917.4,4.49530401]
[1767010718990,0.17510432,2919.6,2917.5,3.77470851]
[1767010719193,0.17510432,2919.6,2917.6,0.17157]
[1767010719399,0.17510432,2919.6,2917.6,4.54328553]
[1767010719791,0.17510432,2919.6,2917.7,3.81571679]
[1767010719993,0.00365432,2919.6,2917.7,3.81571679]
[1767010720191,0.17147,2919.3,2917.8,4.39556346]
[1767010720487,0.00365432,2919.6,2917.2,0.00514077]
[1767010720801,0.17511432,2919.6,2917.4,4.45705645]
[1767010721098,0.17147,2919.3,2917.3,2.05]
[1767010721299,0.1715,2918.9,2917.2,0.00514077]
[1767010721500,0.1715,2918.9,2917.2,4.13314077]
[1767010721797,0.1715,2918.9,2917.3,4.54552754]
[1767010721999,0.00365432,2919.6,2917.3,6.90985665]
[1767010722196,0.17147,2919.4,2917.3,6.90985665]
[1767010722397,0.17147,2919.4,2917.3,7.08144665]
[1767010723302,0.17147,2919.4,2917.3,6.90985665]
[1767010723495,0.17147,2919.4,2917.5,0.17157]
[1767010723996,0.17147,2919.4,2917.6,4.50167197]
[1767010724296,0.00365432,2919.6,2917.6,4.67324197]
[1767010724497,0.00365432,2919.6,2917.8,0.17156]
[1767010724701,0.00365432,2919.6,2918.0,2.36432911]
[1767010724902,0.00365432,2919.6,2918.0,2.53586911]
[1767010725093,0.00365432,2919.6,2918.1,4.52900084]
[1767010726002,0.00365432,2919.6,2918.2,4.779]
[1767010726202,0.00365432,2919.6,2918.3,4.779]
[1767010726599,0.17141,2920.4,2918.4,4.36271167]
[1767010726895,3.44,2921.2,2919.1,0.00514077]
[1767010727101,0.17142,2920.2,2919.1,0.00514077]
[1767010727299,3.44,2921.0,2919.1,0.00514077]
[1767010727496,0.17144,2919.9,2918.3,4.779]
[1767010727701,0.17481763,2919.9,2918.3,4.78219801]
[1767010728093,0.00337763,2919.9,2918.3,0.00319801]
[1767010728502,0.17148,2919.3,2918.3,0.00319801]
[1767010728899,0.17148,2919.2,2917.4,1.472]
[1767010729202,0.00514077,2919.4,2917.4,1.472]
[1767010729598,0.1715,2918.8,2918.1,0.00514077]
[1767010729797,0.1715,2918.8,2918.1,4.077e-05]
[1767010729991,0.1715,2918.8,2918.1,0.00290349]
[1767010730196,0.00514077,2919.4,2918.1,0.00290349]
[1767010730804,0.17148,2919.2,2918.1,0.00290349]
[1767010731799,0.17149,2919.0,2918.1,3.49e-06]
[1767010731999,0.00514077,2919.4,2916.9,2.11]
[1767010732000,0.17151,2918.7,2916.9,2.11]
[1767010732503,0.17151,2918.7,2917.0,4.48474037]
[1767010732708,0.17151,2918.7,2916.9,2.11]
[1767010732900,0.00514077,2918.1,2917.5,0.00514077]
[1767010735608,0.00514077,2918.1,2917.5,7.7e-07]
[1767010736306,0.17155,2917.9,2917.5,7.7e-07]
[1767010737107,0.17155,2917.9,2916.9,0.00309457]
[1767010737995,0.17157,2917.7,2916.9,0.00309457]
[1767010738200,0.17157,2917.6,2917.0,0.00514077]
[1767010739805,0.00281613,2917.7,2917.0,0.00514077]
[1767010740202,0.00281613,2917.7,2916.1,2.266]
[1767010740408,0.17158,2917.4,2916.1,2.266]
[1767010740606,0.00281613,2917.7,2913.6,3.01367062]
[1767010740804,0.17167,2916.0,2914.2,2.55545852]
[1767010741007,1.17966267,2917.0,2914.3,4.50765992]
[1767010741209,0.00514077,2915.9,2915.4,0.00514077]
[1767010741405,0.00514077,2915.9,2914.3,0.00419692]
[1767010741807,0.17168,2915.8,2914.3,0.00419692]
[1767010742002,0.00514077,2915.9,2914.3,0.00419692]
[1767010742205,0.00514077,2915.9,2914.5,1.77383804]
[1767010742508,0.17161,2916.9,2914.9,0.00340721]
[1767010742905,0.17161,2916.9,2915.0,4.46082955]
[1767010743500,0.00514077,2916.2,2915.0,4.46082955]
[1767010744114,0.17161,2916.9,2915.0,4.46082955]
[1767010744609,0.17158,2917.5,2915.0,4.46082955]
[1767010744811,0.00281613,2917.7,2915.0,4.46082955]
[1767010745214,0.00514077,2916.6,2915.0,4.46082955]
[1767010745414,0.17159,2917.3,2915.2,0.17171]
[1767010745819,0.17159,2917.3,2915.3,4.38169487]
[1767010746117,0.17438613,2917.7,2915.4,4.9477]
[1767010746421,0.17438613,2917.7,2915.5,8.19518661]
[1767010746614,0.00281613,2917.7,2915.5,8.02349661]
[1767010747021,0.00281613,2917.7,2916.0,0.17166]
[1767010747218,0.00281613,2917.7,2915.5,4.38169487]
[1767010748515,0.00281613,2917.7,2915.6,0.17169]
[1767010748915,0.00514077,2916.9,2916.4,0.00514077]
[1767010749117,0.00281613,2917.7,2916.4,0.0083971]
[1767010750218,0.00514077,2917.3,2916.4,0.0083971]
[1767010751224,0.00281613,2917.7,2916.4,0.0083971]
[1767010751934,0.17159,2917.4,2916.4,0.0083971]
[1767010752617,0.17159,2917.3,2915.4,4.776]
[1767010753320,0.17159,2917.3,2915.5,4.48575303]
[1767010753818,0.17159,2917.3,2916.1,0.00514077]
[1767010754521,0.00281613,2917.7,2916.1,0.00514077]
[1767010755824,0.17438613,2917.7,2916.1,0.00514077]
[1767010757818,0.17158,2917.4,2916.1,0.00514077]
[1767010758219,0.17159,2917.3,2916.1,0.00514077]
[1767010758420,0.00281613,2917.7,2916.1,0.00514077]
[1767010758616,0.00281613,2917.7,2915.5,0.00386385]
[1767010758617,0.17161,2917.0,2915.5,0.00386385]
[1767010759524,0.17162,2916.9,2916.0,0.00514077]
[1767010759830,0.00514077,2916.5,2915.5,0.00386385]
[1767010760729,0.00514077,2916.5,2915.7,0.00514077]
[1767010761330,0.17162,2916.8,2915.7,0.00514077]
[1767010761926,0.17167,2916.0,2915.5,0.00386385]
[1767010762123,0.00281613,2917.7,2914.2,0.78162048]
[1767010762124,0.17168,2915.8,2914.2,0.78162048]
[1767010762735,0.17163,2916.6,2914.3,4.37886023]
[1767010762928,0.17163,2916.6,2914.3,8.07659375]
[1767010763133,0.17163,2916.6,2915.2,0.00514077]
[1767010764230,0.00514077,2916.2,2915.2,0.00514077]
[1767010764827,0.17159,2917.3,2915.2,0.00514077]
[1767010765027,0.17159,2917.3,2915.3,4.39593374]
[1767010765228,0.00281613,2917.7,2915.3,4.39593374]
[1767010765229,0.1716,2917.2,2915.3,4.39593374]
[1767010765427,0.17161,2917.0,2915.2,0.00514077]
[1767010765832,0.17161,2916.9,2915.2,0.00514077]
[1767010766028,0.17163,2916.7,2915.2,0.00514077]
[1767010767028,0.17158,2917.5,2915.2,0.00514077]
[1767010767229,0.00281613,2917.7,2915.3,4.40436283]
[1767010767431,0.17161,2917.0,2915.2,0.00514077]
[1767010768530,0.17161,2917.0,2915.3,4.53583108]
[1767010774235,0.00281613,2917.7,2915.3,4.53583108]
[1767010774637,0.17158,2917.6,2915.3,4.53583108]
[1767010774940,0.17158,2917.4,2915.3,4.53583108]
[1767010775134,0.17158,2917.4,2915.4,3.81906722]
[1767010775440,0.17158,2917.4,2915.5,4.47077864]
[1767010775640,0.00281613,2917.7,2915.5,4.64246864]
[1767010775838,0.00281613,2917.7,2915.7,2.01370673]
[1767010776041,0.00281613,2917.7,2915.8,0.17167]
[1767010776242,0.00281613,2917.7,2915.8,4.53871955]
[1767010776640,0.00281613,2917.7,2915.9,0.17167]
[1767010776941,0.17158,2917.4,2915.9,3.92702025]
[1767010777238,0.1716,2917.2,2915.2,1.01699976]
[1767010777640,0.00281613,2917.7,2915.2,0.00514077]
[1767010777945,3.44,2917.5,2915.2,0.00514077]
[1767010778145,0.17162,2916.8,2915.2,0.00514077]
[1767010778647,0.00281613,2917.7,2915.2,0.17685077]
[1767010778937,0.00281613,2917.7,2915.3,4.49143883]
[1767010779344,0.17158,2917.4,2915.3,4.49143883]
[1767010779937,0.17158,2917.4,2915.3,4.66314883]
[1767010780143,0.17158,2917.4,2915.4,3.84013264]
[1767010780338,0.00281613,2917.7,2915.5,0.17169]
[1767010780540,0.00281613,2917.7,2915.5,4.71121295]
[1767010780938,0.17157,2917.6,2915.5,4.71121295]
[1767010783441,0.17157,2917.6,2915.6,3.97181374]
[1767010783845,0.17157,2917.6,2915.7,4.52205657]
[1767010784048,0.00281613,2917.7,2915.7,4.69373657]
[1767010784449,0.00281613,2917.7,2915.9,0.17167]
[1767010784850,0.00281613,2917.7,2916.0,8.50620031]
[1767010786453,0.17157,2917.6,2915.6,3.01367062]
[1767010786644,0.17157,2917.6,2915.5,0.17169]
[1767010786950,0.17157,2917.6,2915.7,4.47484638]
[1767010787154,0.17157,2917.6,2915.6,4.50525561]
[1767010787353,0.17157,2917.6,2915.5,0.17169]
[1767010787651,0.17157,2917.6,2915.6,4.50525561]
[1767010790355,0.1716,2917.2,2915.5,3.01367062]
[1767010790551,0.17161,2917.0,2915.2,0.00514077]
[1767010790852,0.00281613,2917.7,2915.2,0.00514077]
[1767010792054,0.17161,2917.0,2915.2,0.00514077]
[1767010792463,0.17163,2916.7,2915.2,0.00514077]
[1767010792659,0.17163,2916.6,2915.2,0.00514077]
[1767010797861,3.44281613,2917.7,2915.2,0.00514077]
[1767010798067,4.33735835,2917.6,2915.2,0.00514077]
[1767010798269,3.44,2917.6,2915.2,0.00514077]
[1767010798768,0.17165,2916.3,2915.2,0.00514077]
[1767010799765,0.17166,2916.1,2915.2,0.00514077]
[1767010801364,3.44,2917.5,2914.3,0.00317768]
[1767010801561,3.44,2917.3,2914.3,0.00317768]
[1767010801762,0.17166,2916.1,2914.3,0.00317768]
[1767010802069,0.17168,2915.7,2914.3,0.00317768]
[1767010802267,0.17169,2915.6,2914.3,0.00317768]
[1767010802468,0.00514077,2915.2,2914.7,0.00514077]
[1767010802767,0.00514077,2915.2,2914.3,0.00317768]
[1767010802971,0.17173,2915.0,2914.3,0.00317768]
[1767010803265,0.17553349,2915.6,2914.3,0.00317768]
[1767010803570,0.00384349,2915.6,2914.3,0.00317768]
[1767010803768,0.17171,2915.3,2914.3,0.00317768]
[1767010803967,0.00384349,2915.6,2914.3,0.00317768]
[1767010804166,0.00514077,2915.2,2913.5,4.79]
[1767010804365,0.17175,2914.5,2912.3,24.023]
[1767010804666,0.00384349,2915.6,2912.4,4.79]
[1767010804968,0.17176,2914.4,2912.4,13.15425712]
[1767010805159,3.44,2915.5,2912.4,4.79414184]
[1767010805359,0.17176,2914.5,2912.4,4.79414184]
[1767010805564,0.00514077,2914.2,2913.7,0.00514077]
[1767010805764,0.00514077,2914.2,2912.5,4.51315161]
[1767010806360,0.00514077,2914.2,2912.4,4.79414184]
[1767010806668,0.1718,2913.7,2912.4,0.00414184]
[1767010806867,0.17181,2913.6,2912.4,0.00414184]
[1767010807170,0.00514077,2914.2,2912.4,0.00414184]
[1767010807869,0.00514077,2914.2,2913.0,0.00514077]
[1767010808266,0.17182,2913.4,2912.4,0.00414184]
[1767010808568,0.17575667,2913.4,2912.4,0.00414184]
[1767010809362,0.17691077,2914.2,2912.6,1.78404776]
[1767010809661,0.00514077,2914.2,2910.8,0.17197]
[1767010809964,0.17181,2913.7,2911.4,1.77890699]
[1767010810362,0.17181,2913.6,2911.1,0.17195]
[1767010810563,0.003,2914.9,2910.9,6.14890699]
[1767010810564,1.77890699,2914.0,2910.9,6.14890699]
[1767010810762,0.00515013,2912.7,2912.2,0.0034384]
[1767010810956,0.00515013,2912.7,2911.0,4.56297085]
[1767010811162,0.17187,2912.6,2910.9,0.00358171]
[1767010811967,0.00515013,2912.7,2910.9,0.00358171]
[1767010812165,0.00515013,2912.7,2911.2,1.77890699]
[1767010813263,0.17179,2913.9,2912.2,1.77890699]
[1767010813965,0.00395199,2914.0,2912.4,1.77890699]
[1767010814375,0.00515013,2913.5,2912.9,0.00515013]
[1767010815170,0.00395199,2914.0,2912.9,0.00515013]
[1767010815576,3.44,2916.8,2912.9,0.00515013]
[1767010815875,1.77890699,2916.3,2913.1,1.77890699]
[1767010816166,0.17174,2914.8,2912.8,0.003]
[1767010816374,0.17174,2914.8,2912.7,6.57490699]
[1767010816574,0.1750684,2914.8,2912.7,6.57885218]
[1767010816770,0.1750684,2914.8,2912.7,0.00394519]
[1767010816771,0.17175,2914.6,2912.7,0.00394519]
[1767010816973,0.0033284,2914.8,2912.7,0.00394519]
[1767010817279,0.17174,2914.7,2912.7,0.00394519]
[1767010817465,0.17174,2914.7,2913.0,1.77890699]
[1767010818167,0.00515013,2915.0,2913.5,1.77890699]
[1767010818374,1.77890699,2916.9,2914.0,1.77890699]
[1767010818574,0.17166,2916.1,2914.0,1.77890699]
[1767010818967,0.17171,2915.3,2913.5,4.353]
[1767010819168,0.17427599,2915.3,2913.5,4.353]
[1767010819364,0.00515013,2914.7,2914.1,0.00515013]
[1767010819667,0.00256599,2915.3,2914.1,0.00515013]
[1767010820464,0.00515013,2915.0,2914.1,0.00515013]
[1767010822272,0.00515013,2915.0,2914.1,1.78405712]
[1767010822479,0.00256599,2915.3,2914.1,1.78405712]
[1767010823467,40.8,2917.0,2914.1,1.78405712]
[1767010823767,0.17164,2916.4,2914.6,1.77890699]
[1767010824177,0.1716,2917.1,2915.1,1.77890699]
[1767010824577,0.00515013,2916.4,2915.8,0.00515013]
[1767010824877,0.17598554,2917.1,2915.8,0.00515013]
[1767010825077,0.17162,2916.8,2915.8,0.00515013]
[1767010825669,0.00515013,2916.6,2915.8,0.00515013]
[1767010826679,0.00515013,2916.6,2915.1,0.00419149]
[1767010826973,0.00515013,2916.6,2915.1,1.78309848]
[1767010826974,0.17678013,2916.6,2915.1,1.78309848]
[1767010827175,0.00515013,2916.6,2915.1,1.78309848]
[1767010827471,0.00438554,2917.1,2915.1,1.78309848]
[1767010827775,0.00438554,2917.1,2915.2,4.38115137]
[1767010828278,0.00438554,2917.1,2915.1,1.78309848]
[1767010828683,0.00515013,2916.4,2915.8,0.00515013]
[1767010830376,0.17161,2917.0,2915.8,0.00515013]
[1767010831378,0.00438554,2917.1,2915.8,0.00515013]
[1767010831379,0.0034334,2916.7,2915.8,0.00515013]
[1767010836685,0.0034334,2916.7,2915.1,0.00419149]
[1767010836686,0.17164,2916.4,2915.1,0.00419149]
[1767010836882,0.17165,2916.3,2915.1,0.00419149]
[1767010837985,0.17165,2916.3,2915.4,0.00515013]
[1767010838180,0.0034334,2916.7,2915.1,0.00419149]
[1767010838397,0.17168,2915.7,2914.2,1.169]
[1767010838584,0.17172,2915.2,2913.2,1.77890699]
[1767010838779,0.17172,2915.1,2913.2,1.77890699]
[1767010838983,3.44,2916.2,2913.7,1.77890699]
[1767010838984,0.17168,2915.7,2913.7,1.77890699]
[1767010839180,0.17165,2916.2,2914.4,0.00515013]
[1767010839376,0.00438554,2917.1,2914.4,0.00515013]
[1767010839679,0.17164,2916.4,2914.4,0.00839885]
[1767010840188,0.00515013,2915.7,2914.4,0.00839885]
[1767010840389,0.17684013,2915.7,2914.4,0.00839885]
[1767010840682,0.1717,2915.5,2914.4,0.00839885]
[1767010840884,0.1717,2915.5,2913.0,4.788]
[1767010840885,0.17171,2915.2,2913.3,1.77890699]
[1767010841877,0.17171,2915.2,2914.0,0.00515013]
[1767010845289,0.00515013,2915.7,2914.0,0.00515013]
[1767010845493,0.00515013,2915.7,2913.3,0.00414031]
[1767010845691,4.3353451,2915.6,2913.3,0.00414031]
[1767010845885,3.44,2915.6,2913.3,0.00414031]
[1767010846286,0.17173,2914.9,2913.3,0.00414031]
[1767010846482,0.17527426,2914.9,2913.8,0.00515013]
[1767010847496,0.17169,2915.6,2913.8,0.00515013]
[1767010847792,0.17169,2915.6,2914.1,1.77890699]
[1767010847993,0.17169,2915.6,2913.8,0.00515013]
[1767010848495,0.17415968,2915.6,2913.8,0.00515013]
[1767010848686,0.17171,2915.3,2913.8,0.00515013]
[1767010849587,0.00246968,2915.6,2913.8,0.00515013]
[1767010853692,0.00246968,2915.6,2914.1,1.77890699]
[1767010854293,0.00246968,2915.6,2914.2,4.48133645]
[1767010855191,0.00246968,2915.6,2914.3,0.17176]
[1767010855790,0.00515013,2915.7,2914.4,4.42210096]
[1767010856392,0.17165,2916.2,2914.6,1.77890699]
[1767010856788,0.17413306,2916.2,2914.6,1.77890699]
[1767010857393,0.00515013,2915.7,2914.6,1.77890699]
[1767010857699,0.00515013,2915.7,2914.7,4.48689004]
[1767010858090,0.00515013,2915.7,2914.6,1.77890699]
[1767010858291,0.17413306,2916.2,2914.6,1.77890699]
[1767010858593,0.17413306,2916.2,2914.7,4.38595813]
[1767010858791,0.00248306,2916.2,2914.8,4.787]
[1767010859400,0.00515013,2915.8,2914.8,4.787]
[1767010859597,0.00248306,2916.2,2914.8,4.787]
[1767010859896,0.00248306,2916.2,2914.9,4.43822042]
[1767010860097,0.17162,2916.8,2914.9,4.43822042]
[1767010860098,0.17162,2916.8,2915.1,1.77890699]
[1767010860296,0.17158,2917.5,2915.6,1.77890699]
[1767010860594,0.0034334,2916.8,2916.3,0.00515013]
[1767010861086,0.00616893,2916.8,2916.3,0.0087052]
[1767010861494,0.17159,2917.4,2916.3,0.0087052]
[1767010861996,0.87818698,2917.6,2915.1,1.77890699]
[1767010862193,0.17162,2916.9,2914.9,4.788]
[1767010862394,0.17162,2916.9,2915.2,4.4325445]
[1767010862604,0.17162,2916.9,2915.1,4.788]
[1767010862989,0.1745973,2916.9,2915.7,0.00515013]
[1767010863200,0.00515013,2916.3,2915.7,0.00515013]
[1767010863395,0.0029773,2916.9,2915.7,0.00515013]
[1767010863601,1.04975698,2917.6,2915.7,0.00515013]
[1767010864688,0.17158,2917.4,2915.7,0.00515013]
[1767010865905,0.17159,2917.3,2915.7,0.00515013]
[1767010866702,0.1716,2917.2,2915.7,0.00515013]
[1767010868806,0.88190296,2917.6,2915.7,0.00515013]
[1767010869307,1.05347296,2917.6,2915.7,0.00515013]
[1767010869693,0.17528598,2917.6,2915.7,0.00515013]
[1767010870802,0.17158,2917.5,2915.7,0.00515013]
[1767010871102,0.17158,2917.4,2915.7,0.00515013]
[1767010871294,0.00371598,2917.6,2915.7,0.17683013]
[1767010871497,0.00371598,2917.6,2915.7,0.00515013]
[1767010871699,0.17158,2917.4,2915.7,0.00515013]
[1767010872996,0.17159,2917.3,2915.7,0.00515013]
[1767010874105,0.00371598,2917.6,2915.7,0.00515013]
[1767010874608,0.17163,2916.6,2915.1,0.003825]
[1767010875201,3.44,2917.5,2915.1,0.003825]
[1767010875403,0.17166,2916.1,2915.1,2.5e-05]
[1767010876013,0.17678013,2916.6,2915.1,2.5e-05]
[1767010876413,0.17678013,2916.6,2915.6,0.00515013]
[1767010878610,0.17165,2916.3,2915.1,2.5e-05]
[1767010879705,0.17165,2916.3,2915.4,0.00515013]
[1767010880805,0.00515013,2916.6,2915.4,0.00515013]
[1767010881608,0.17678013,2916.6,2915.4,0.00515013]
[1767010881805,0.00515013,2916.6,2915.1,2.5e-05]
[1767010882108,0.17168,2915.8,2913.5,5.12526323]
[1767010882509,0.17168,2915.8,2913.7,4.61011993]
[1767010882709,0.00515013,2915.0,2914.5,0.00515013]
[1767010882910,0.00794403,2915.0,2914.5,0.00903574]
[1767010883704,0.00794403,2915.0,2914.5,0.00382937]
[1767010884809,0.00794403,2915.0,2914.5,0.0089795]
[1767010885709,0.17966403,2915.0,2913.5,4.145]
[1767010885907,0.17966403,2915.0,2913.0,0.1]
[1767010886308,0.17173,2914.9,2913.0,0.1]
[1767010886714,0.17173,2914.9,2913.7,0.0034334]
[1767010887024,0.00794403,2915.0,2913.7,0.0034334]